[Event "Skalica Rapid 2020"]
[Site "Skalica"]
[Date "2020.08.29"]
[Round "4.3"]
[White "Pacher Milan"]
[Black "Samoun Florent"]
[Result "1-0"]
[ECO "B04"]
[WhiteElo "2452"]
[BlackElo "2228"]
[Annotator "ChessBase"]
[PlyCount "45"]
[EventDate "2020.08.29"]
[EventType "swiss"]
[EventCountry "SVK"]
[SourceTitle "playchess.com"]
[Source "ChessBase"]
[SourceQuality "1"]
[TimeControl "600+5"]

1. e4 {[%emt 0:00:00]} Nf6 {[%emt 0:00:00]} 2. e5 {[%emt 0:00:03]} Nd5 {[%emt 0:00:00]} 3. d4 {[%emt 0:00:00]} d6 {[%emt 0:00:00]} 4. Nf3 {[%emt 0:00:00]} Nb6 {[%emt 0:00:02]} 5. Bd3 {[%emt 0:00:06]} g6 {[%emt 0:00:02]} 6. O-O {[%emt 0:00:04]} Bg7 {[%emt 0:00:02]} 7. h3 {[%emt 0:00:04]} O-O {[%emt 0:00:03]} 8. Qe2 {[%emt 0:00:01]} Nc6 {[%emt 0:00:04]} 9. c3 {[%emt 0:00:28]} Bd7 {[%emt 0:01:06]} 10. Bf4 {[%emt 0:00:08]} Qc8 {[%emt 0:00:12]} 11. Nbd2 {[%emt 0:00:08]} Bf5 {[%emt 0:00:58]} 12. Rfe1 {[%emt 0:00:03]} Bxd3 {[%emt 0:00:06]} 13. Qxd3 {[%emt 0:00:03]} dxe5 {[%emt 0:00:08]} 14. Nxe5 {[%emt 0:00:03]} Nxe5 {[%emt 0:00:05]} 15. Bxe5 {[%emt 0:00:02]} e6 {[%emt 0:00:08]} 16. Ne4 {[%emt 0:00:16]} Nd7 {[%emt 0:00:16]} 17. Bxg7 {[%emt 0:00:13]} Kxg7 {[%emt 0:00:03]} 18. d5 {[%emt 0:00:05]} e5 {[%emt 0:00:41]} 19. Rad1 {[%emt 0:00:11]} h6 {[%emt 0:02:41]} 20. d6 {[%emt 0:00:03]} cxd6 {[%emt 0:01:56]} 21. Qxd6 {[%emt 0:00:52]} Rd8 {[%emt 0:00:04]} 22. Qe7 {[%emt 0:00:06]} a5 {[%emt 0:02:45]} 23. Nd6 {[%emt 0:00:10]} 1-0

[Event "Skalica Rapid 2020"]
[Site "Skalica"]
[Date "2020.08.29"]
[Round "4.3"]
[White "Tupy, Emil"]
[Black "Sobek, Michal"]
[Result "0-1"]
[ECO "A48"]
[WhiteElo "1538"]
[BlackElo "2113"]
[Annotator "ChessBase"]
[PlyCount "66"]
[EventDate "2020.08.29"]
[EventType "swiss"]
[EventCountry "SVK"]
[SourceTitle "playchess.com"]
[Source "ChessBase"]
[SourceQuality "1"]
[TimeControl "600+5"]

1. Nf3 Nf6 {[%emt 0:00:01]} 2. d4 {[%emt 0:00:05]} g6 {[%emt 0:00:04]} 3. Bf4 {[%emt 0:00:06]} d6 {[%emt 0:00:04]} 4. Nc3 {[%emt 0:00:03]} Nbd7 {[%emt 0:00:14]} 5. g3 {[%emt 0:00:09]} c5 {[%emt 0:00:12]} 6. d5 {[%emt 0:00:14]} Bg7 {[%emt 0:00:04]} 7. Bg2 {[%emt 0:00:02]} O-O {[%emt 0:00:16]} 8. O-O {[%emt 0:00:02]} b5 {[%emt 0:00:14]} 9. Nxb5 {[%emt 0:00:14]} Qb6 {[%emt 0:00:02]} 10. a4 {[%emt 0:01:01]} a6 {[%emt 0:00:04]} 11. Nc3 {[%emt 0:00:19]} Qxb2 {[%emt 0:00:07]} 12. Qd2 {[%emt 0:00:18]} Nh5 {[%emt 0:00:10]} 13. Ne4 {[%emt 0:00:35]} Nxf4 {[%emt 0:00:02]} 14. gxf4 {[%emt 0:00:16]} Rb8 {[%emt 0:00:14]} 15. Rad1 {[%emt 0:00:15]} Qb4 {[%emt 0:00:17]} 16. Qxb4 {[%emt 0:00:09]} Rxb4 {[%emt 0:00:00]} 17. c3 {[%emt 0:00:22]} Rxe4 {[%emt 0:00:05]} 18. Ng5 {[%emt 0:00:38]} Rxa4 {[%emt 0:00:16]} 19. Rd3 {[%emt 0:00:29]} a5 {[%emt 0:00:19]} 20. h4 {[%emt 0:00:06]} Ba6 {[%emt 0:00:02]} 21. Re3 {[%emt 0:00:04]} Bf6 {[%emt 0:00:35]} 22. Rb1 {[%emt 0:00:12]} Rxf4 {[%emt 0:00:10]} 23. Nf3 {[%emt 0:00:21]} Rb8 {[%emt 0:00:13]} 24. Rxb8+ {[%emt 0:00:07]} Nxb8 {[%emt 0:00:02]} 25. Kh2 {[%emt 0:00:25]} Nd7 {[%emt 0:00:12]} 26. Kg3 {[%emt 0:00:02]} Rc4 {[%emt 0:00:00]} 27. Nd2 {[%emt 0:00:08]} Rxc3 {[%emt 0:00:08]} 28. Rxc3 {[%emt 0:00:06]} Bxc3 {[%emt 0:00:02]} 29. Ne4 {[%emt 0:00:01]} Be5+ {[%emt 0:00:30]} 30. Kf3 {[%emt 0:00:01]} Nf6 {[%emt 0:00:06]} 31. Nxf6+ {[%emt 0:00:16]} Bxf6 {[%emt 0:00:01]} 32. Ke3 {[%emt 0:00:02]} a4 {[%emt 0:00:07]} 33. Kd2 {[%emt 0:00:04]} a3 {[%emt 0:00:03]} 0-1

[Event "Skalica Rapid 2020"]
[Site "Skalica"]
[Date "2020.08.29"]
[Round "4.4"]
[White "Manik Mikulas"]
[Black "Matejovic Juraj"]
[Result "1/2-1/2"]
[ECO "B30"]
[WhiteElo "2313"]
[BlackElo "2219"]
[Annotator "ChessBase"]
[PlyCount "29"]
[EventDate "2020.08.29"]
[EventType "swiss"]
[EventCountry "SVK"]
[SourceTitle "playchess.com"]
[Source "ChessBase"]
[SourceQuality "1"]
[TimeControl "600+5"]

1. e4 {[%emt 0:00:05]} c5 {[%emt 0:00:02]} 2. Nf3 {[%emt 0:00:02]} e6 {[%emt 0:00:08]} 3. Nc3 {[%emt 0:00:04]} Nc6 {[%emt 0:00:16]} 4. Bb5 {[%emt 0:00:02]} Nge7 {[%emt 0:00:15]} 5. O-O {[%emt 0:00:04]} a6 {[%emt 0:00:11]} 6. Bxc6 {[%emt 0:00:03]} Nxc6 {[%emt 0:00:03]} 7. d4 {[%emt 0:00:01]} cxd4 {[%emt 0:00:06]} 8. Nxd4 {[%emt 0:00:02]} Be7 {[%emt 0:01:50]} 9. Nxc6 {[%emt 0:00:06]} bxc6 {[%emt 0:00:13]} 10. Qg4 {[%emt 0:00:06]} O-O {[%emt 0:01:10]} 11. e5 {[%emt 0:02:48]} f6 {[%emt 0:00:59]} 12. Bh6 {[%emt 0:00:24]} Rf7 {[%emt 0:00:05]} 13. exf6 {[%emt 0:00:01]} Bxf6 {[%emt 0:00:00]} 14. Ne4 {[%emt 0:00:01]} d5 {[%emt 0:00:53]} 15. Nxf6+ {[%emt 0:00:14]} 1/2-1/2

[Event "Skalica Rapid 2020"]
[Site "Skalica"]
[Date "2020.08.29"]
[Round "4.4"]
[White "Romanova, Ela"]
[Black "Chlpek, Daniel"]
[Result "1/2-1/2"]
[ECO "B51"]
[WhiteElo "1529"]
[BlackElo "1879"]
[Annotator "NA"]
[PlyCount "108"]
[EventDate "2020.08.29"]
[EventType "swiss"]
[EventCountry "SVK"]
[SourceTitle "playchess.com"]
[Source "ChessBase"]
[SourceQuality "1"]
[TimeControl "600+5"]

1. e4 {[%emt 0:00:00]} c5 {[%emt 0:00:00]} 2. Nf3 {[%emt 0:00:00]} d6 {[%emt 0:00:00]} 3. Bb5+ {[%emt 0:00:01]} Nd7 {[%emt 0:00:05]} 4. c3 {[%emt 0:00:04]} Ngf6 {[%emt 0:00:07]} 5. Qe2 {[%emt 0:00:03]} a6 {[%emt 0:00:04]} 6. Bxd7+ {[%emt 0:00:08]} Nxd7 {[%emt 0:00:07]} 7. d4 {[%emt 0:00:03]} cxd4 {[%emt 0:00:24]} 8. cxd4 {[%emt 0:00:03]} g6 {[%emt 0:00:16]} 9. Nc3 {[%emt 0:00:03]} Bg7 {[%emt 0:00:03]} 10. O-O {[%emt 0:00:08]} O-O {[%emt 0:00:01]} 11. Be3 {[%emt 0:00:17]} Nb6 {[%emt 0:00:25]} 12. Nd2 {[%emt 0:00:30]} Bd7 {[%emt 0:00:06]} 13. f4 {[%emt 0:00:05]} d5 {[%emt 0:00:15]} 14. f5 {[%emt 0:00:59]} dxe4 {[%emt 0:00:08]} 15. fxg6 {[%emt 0:00:10]} hxg6 {[%emt 0:00:05]} 16. Ncxe4 {[%emt 0:00:46]} Nd5 {[%emt 0:00:19]} 17. Bf2 {[%emt 0:00:35]} Bb5 {[%emt 0:00:22]} 18. Nc4 {[%emt 0:00:36]} Nf4 {[%emt 0:00:21]} 19. Qc2 {[%emt 0:00:23]} Rc8 {[%emt 0:00:03]} 20. b3 {[%emt 0:00:07]} Ne6 {[%emt 0:00:38]} 21. Rad1 {[%emt 0:00:32]} Bc6 {[%emt 0:01:29]} 22. Qd3 {[%emt 0:01:09]} Qd5 {[%emt 0:00:08]} 23. Rfe1 {[%emt 0:01:18]} b5 {[%emt 0:00:03]} 24. Nb6 {[%emt 0:00:06]} Qf5 {[%emt 0:01:27]} 25. Nxc8 {[%emt 0:00:33]} Rxc8 {[%emt 0:00:02]} 26. Nc5 {[%emt 0:02:52]} Nxc5 {[%emt 0:01:21]} 27. Qxf5 {[%emt 0:00:05]} gxf5 {[%emt 0:00:02]} 28. dxc5 {[%emt 0:00:02]} e6 {[%emt 0:00:10]} 29. Rd3 {[%emt 0:00:25]} Kf8 {[%emt 0:00:21]} 30. Red1 {[%emt 0:00:04]} Ke7 {[%emt 0:00:05]} 31. b4 {[%emt 0:00:15]} Bd5 {[%emt 0:00:06]} 32. a3 {[%emt 0:00:03]} Rg8 {[%emt 0:00:08]} 33. Bg3 {[%emt 0:00:06]} Bf6 {[%emt 0:00:08]} 34. Kf1 {[%emt 0:00:05]} f4 {[%emt 0:00:06]} 35. Bxf4 {[%emt 0:00:09]} Bxg2+ {[%emt 0:00:29]} 36. Kf2 {[%emt 0:00:04]} Bd5 {[%emt 0:00:02]} 37. Rxd5 {[%emt 0:00:03]} exd5 {[%emt 0:00:02]} 38. Rxd5 {[%emt 0:00:03]} Rg4 {[%emt 0:00:15]} 39. Bg3 {[%emt 0:00:05]} Rc4 {[%emt 0:00:16]} 40. Bd6+ {[%emt 0:00:05]} Ke6 {[%emt 0:00:08]} 41. Rd3 {[%emt 0:00:05]} Be5 {[%emt 0:00:34]} 42. Bxe5 {[%emt 0:00:02]} Kxe5 {[%emt 0:00:02]} 43. Rd6 {[%emt 0:00:11]} a5 {[%emt 0:00:02]} 44. Rb6 {[%emt 0:00:08]} axb4 {[%emt 0:00:07]} 45. Rxb5 {[%emt 0:00:03]} bxa3 {[%emt 0:00:03]} 46. Ra5 {[%emt 0:00:04]} Rc2+ {[%emt 0:00:02]} 47. Kg3 {[%emt 0:00:02]} a2 {[%emt 0:00:01]} 48. h4 {[%emt 0:00:09]} Kd4 {[%emt 0:00:13]} 49. h5 {[%emt 0:00:03]} Rxc5 {[%emt 0:00:12]} 50. Rxa2 {[%emt 0:00:02]} Rxh5 {[%emt 0:00:02]} 51. Rf2 {[%emt 0:00:03]} Rh7 {[%emt 0:00:05]} 52. Kg4 {[%emt 0:00:04]} Ke5 {[%emt 0:00:01]} 53. Kg5 {[%emt 0:00:04]} Rg7+ {[%emt 0:00:05]} 54. Kh6 {[%emt 0:00:04]} Rg3 {[%emt 0:00:08]} 1/2-1/2

[Event "Skalica Rapid 2020"]
[Site "Skalica"]
[Date "2020.08.29"]
[Round "4.5"]
[White "Abel, Peter"]
[Black "Jurakic Lukas"]
[Result "1-0"]
[ECO "A28"]
[WhiteElo "2200"]
[BlackElo "1918"]
[Annotator "ChessBase"]
[PlyCount "95"]
[EventDate "2020.08.29"]
[EventType "swiss"]
[EventCountry "SVK"]
[SourceTitle "playchess.com"]
[Source "ChessBase"]
[SourceQuality "1"]
[TimeControl "600+5"]

1. c4 {[%emt 0:00:00]} e5 {[%emt 0:00:00]} 2. Nc3 {[%emt 0:00:00]} Nf6 {[%emt 0:00:00]} 3. Nf3 {[%emt 0:00:01]} Nc6 {[%emt 0:00:00]} 4. e3 {[%emt 0:00:05]} Bb4 {[%emt 0:00:10]} 5. Qc2 {[%emt 0:00:00]} Bxc3 {[%emt 0:00:02]} 6. Qxc3 {[%emt 0:00:00]} Qe7 {[%emt 0:00:01]} 7. b3 {[%emt 0:00:36]} d5 {[%emt 0:00:08]} 8. d3 {[%emt 0:01:32]} e4 {[%emt 0:01:04]} 9. Nd4 {[%emt 0:00:33]} Nxd4 {[%emt 0:00:20]} 10. Qxd4 {[%emt 0:00:50]} c5 {[%emt 0:00:02]} 11. Qc3 {[%emt 0:00:17]} d4 {[%emt 0:00:25]} 12. exd4 {[%emt 0:01:11]} exd3+ {[%emt 0:00:55]} 13. Be3 {[%emt 0:00:18]} cxd4 {[%emt 0:00:11]} 14. Qxd4 {[%emt 0:00:06]} Bf5 {[%emt 0:00:17]} 15. O-O-O {[%emt 0:01:10]} Qa3+ {[%emt 0:00:41]} 16. Kb1 {[%emt 0:01:17]} d2+ {[%emt 0:01:12]} 17. Bd3 {[%emt 0:00:02]} Bxd3+ {[%emt 0:00:06]} 18. Qxd3 {[%emt 0:00:01]} Rd8 {[%emt 0:00:45]} 19. Qc2 {[%emt 0:00:02]} O-O {[%emt 0:00:19]} 20. Rxd2 {[%emt 0:00:03]} Rxd2 {[%emt 0:00:35]} 21. Qxd2 {[%emt 0:00:13]} Ne4 {[%emt 0:00:45]} 22. Qd4 {[%emt 0:00:10]} Re8 {[%emt 0:00:31]} 23. Rd1 {[%emt 0:00:05]} b6 {[%emt 0:00:13]} 24. Bc1 {[%emt 0:00:28]} Qc5 {[%emt 0:00:30]} 25. Qxc5 {[%emt 0:00:05]} bxc5 {[%emt 0:00:04]} 26. Rf1 {[%emt 0:00:34]} f5 {[%emt 0:00:28]} 27. Kc2 {[%emt 0:00:07]} Nf6 {[%emt 0:00:30]} 28. Be3 {[%emt 0:00:11]} Re5 {[%emt 0:00:19]} 29. h3 {[%emt 0:00:08]} Kf7 {[%emt 0:00:27]} 30. Rd1 {[%emt 0:00:02]} h6 {[%emt 0:00:17]} 31. Rd6 {[%emt 0:00:07]} g5 {[%emt 0:00:13]} 32. g3 {[%emt 0:00:20]} Kg6 {[%emt 0:00:36]} 33. Kd3 {[%emt 0:00:24]} Kf7 {[%emt 0:00:16]} 34. Ra6 {[%emt 0:00:08]} Re7 {[%emt 0:00:05]} 35. Bxc5 {[%emt 0:00:11]} Rd7+ {[%emt 0:00:00]} 36. Ke2 {[%emt 0:00:15]} Ne4 {[%emt 0:00:01]} 37. Be3 {[%emt 0:00:07]} Nc3+ {[%emt 0:00:09]} 38. Kf3 {[%emt 0:00:06]} Rd3 {[%emt 0:00:11]} 39. b4 {[%emt 0:00:31]} Ne4 {[%emt 0:00:13]} 40. c5 {[%emt 0:00:14]} h5 {[%emt 0:00:07]} 41. b5 {[%emt 0:00:10]} g4+ {[%emt 0:00:03]} 42. hxg4 {[%emt 0:00:07]} hxg4+ {[%emt 0:00:05]} 43. Kf4 {[%emt 0:00:09]} Nxf2 {[%emt 0:00:01]} 44. Rxa7+ {[%emt 0:00:09]} Ke6 {[%emt 0:00:05]} 45. Ra6+ {[%emt 0:00:06]} Kf7 {[%emt 0:00:01]} 46. Bxf2 {[%emt 0:00:13]} Rf3+ {[%emt 0:00:00]} 47. Kg5 {[%emt 0:00:02]} f4 {[%emt 0:00:01]} 48. Kxg4 {[%emt 0:00:02]} 1-0

[Event "Skalica Rapid 2020"]
[Site "Skalica"]
[Date "2020.08.29"]
[Round "4.6"]
[White "O`gorman Tom"]
[Black "Jablonicky, Martin"]
[Result "1/2-1/2"]
[ECO "B38"]
[WhiteElo "2027"]
[BlackElo "2290"]
[Annotator "ChessBase"]
[PlyCount "117"]
[EventDate "2020.08.29"]
[EventType "swiss"]
[EventCountry "SVK"]
[SourceTitle "playchess.com"]
[Source "ChessBase"]
[SourceQuality "1"]
[TimeControl "600+5"]

1. e4 {[%emt 0:00:00]} c5 {[%emt 0:01:58]} 2. Nf3 {[%emt 0:00:00]} Nc6 {[%emt 0:00:03]} 3. d4 {[%emt 0:00:00]} cxd4 {[%emt 0:00:01]} 4. Nxd4 {[%emt 0:00:02]} g6 {[%emt 0:00:05]} 5. c4 {[%emt 0:00:01]} Bg7 {[%emt 0:00:00]} 6. Be3 {[%emt 0:00:00]} Nf6 {[%emt 0:00:00]} 7. Nc3 {[%emt 0:00:01]} d6 {[%emt 0:00:01]} 8. Be2 {[%emt 0:00:02]} O-O {[%emt 0:00:02]} 9. O-O {[%emt 0:00:05]} Bd7 {[%emt 0:00:02]} 10. h3 {[%emt 0:00:00]} Rc8 {[%emt 0:00:04]} 11. Rc1 {[%emt 0:00:00]} a6 {[%emt 0:00:02]} 12. Nf3 {[%emt 0:00:01]} Qa5 {[%emt 0:00:07]} 13. a3 {[%emt 0:00:02]} b5 {[%emt 0:00:26]} 14. c5 {[%emt 0:00:18]} Rfd8 {[%emt 0:00:24]} 15. cxd6 {[%emt 0:00:39]} exd6 {[%emt 0:00:08]} 16. Qd2 {[%emt 0:00:36]} Be6 {[%emt 0:00:13]} 17. Bg5 {[%emt 0:00:49]} Ne5 {[%emt 0:00:18]} 18. Rfd1 {[%emt 0:00:14]} Bb3 {[%emt 0:00:08]} 19. Re1 {[%emt 0:00:29]} Bc4 {[%emt 0:00:33]} 20. Nxe5 {[%emt 0:00:24]} dxe5 {[%emt 0:00:03]} 21. Qe3 {[%emt 0:00:01]} Rd4 {[%emt 0:00:36]} 22. Bxc4 {[%emt 0:00:13]} Rdxc4 {[%emt 0:00:02]} 23. Bxf6 {[%emt 0:00:07]} Bxf6 {[%emt 0:00:17]} 24. Nd5 {[%emt 0:00:00]} Bd8 {[%emt 0:00:25]} 25. Rxc4 {[%emt 0:00:28]} bxc4 {[%emt 0:00:06]} 26. Rc1 {[%emt 0:00:10]} Kg7 {[%emt 0:00:17]} 27. Qc3 {[%emt 0:00:29]} Qxc3 {[%emt 0:00:02]} 28. Rxc3 {[%emt 0:00:01]} Bg5 {[%emt 0:00:45]} 29. Nb6 {[%emt 0:00:19]} Rd8 {[%emt 0:00:14]} 30. Nxc4 {[%emt 0:00:03]} Rd1+ {[%emt 0:00:08]} 31. Kh2 {[%emt 0:00:03]} f5 {[%emt 0:00:01]} 32. g3 {[%emt 0:00:27]} fxe4 {[%emt 0:00:14]} 33. h4 {[%emt 0:00:19]} Bf6 {[%emt 0:00:19]} 34. Re3 {[%emt 0:00:10]} Rd4 {[%emt 0:00:05]} 35. b3 {[%emt 0:00:02]} Kf7 {[%emt 0:00:06]} 36. Rxe4 {[%emt 0:00:06]} Rxe4 {[%emt 0:00:44]} 37. Nd6+ {[%emt 0:00:01]} Ke6 {[%emt 0:00:01]} 38. Nxe4 {[%emt 0:00:01]} Be7 {[%emt 0:00:05]} 39. Kg2 {[%emt 0:03:45]} Kd5 {[%emt 0:00:00]} 40. Kf3 {[%emt 0:00:06]} Bxa3 {[%emt 0:00:01]} 41. Nf6+ {[%emt 0:00:01]} Kd4 {[%emt 0:00:02]} 42. Nxh7 {[%emt 0:00:02]} Be7 {[%emt 0:00:27]} 43. Ng5 {[%emt 0:01:00]} Kc3 {[%emt 0:01:16]} 44. Nf7 {[%emt 0:01:03]} Kxb3 {[%emt 0:00:55]} 45. Nxe5 {[%emt 0:00:01]} a5 {[%emt 0:00:05]} 46. Nxg6 {[%emt 0:00:39]} Bb4 {[%emt 0:00:15]} 47. Ne5 {[%emt 0:00:14]} a4 {[%emt 0:00:08]} 48. Nd3 {[%emt 0:00:03]} a3 {[%emt 0:00:16]} 49. Ke2 {[%emt 0:00:02]} Kc3 {[%emt 0:00:14]} 50. Nc1 {[%emt 0:00:17]} Kc2 {[%emt 0:00:04]} 51. Na2 {[%emt 0:00:10]} Ba5 {[%emt 0:00:10]} 52. f4 {[%emt 0:00:07]} Kb2 {[%emt 0:00:03]} 53. Kd3 {[%emt 0:00:00]} Be1 {[%emt 0:00:14]} 54. g4 {[%emt 0:00:07]} Bxh4 {[%emt 0:00:02]} 55. g5 {[%emt 0:00:01]} Kxa2 {[%emt 0:00:11]} 56. Kc2 {[%emt 0:00:01]} Ka1 {[%emt 0:00:07]} 57. Kb3 {[%emt 0:00:06]} a2 {[%emt 0:00:03]} 58. Kc2 {[%emt 0:00:00]} Bxg5 {[%emt 0:00:04]} 59. fxg5 {[%emt 0:00:02]} 1/2-1/2

[Event "Skalica Rapid 2020"]
[Site "Skalica"]
[Date "2020.08.29"]
[Round "4.7"]
[White "Jancovic, Peter"]
[Black "Pniaczek, Marek"]
[Result "0-1"]
[ECO "D38"]
[WhiteElo "2271"]
[BlackElo "1969"]
[Annotator "ChessBase"]
[PlyCount "70"]
[EventDate "2020.08.29"]
[EventType "swiss"]
[EventCountry "SVK"]
[SourceTitle "playchess.com"]
[Source "ChessBase"]
[SourceQuality "1"]
[TimeControl "600+5"]

1. d4 {[%emt 0:00:00]} Nf6 {[%emt 0:00:00]} 2. c4 {[%emt 0:00:00]} e6 {[%emt 0:00:00]} 3. Nf3 {[%emt 0:00:00]} d5 {[%emt 0:00:03]} 4. Nc3 {[%emt 0:00:02]} Bb4 {[%emt 0:00:00]} 5. Bg5 {[%emt 0:00:06]} h6 {[%emt 0:00:00]} 6. Bh4 {[%emt 0:00:02]} g5 {[%emt 0:00:05]} 7. Bg3 {[%emt 0:00:01]} Ne4 {[%emt 0:00:02]} 8. Qc2 {[%emt 0:00:07]} h5 {[%emt 0:00:44]} 9. h3 {[%emt 0:01:47]} Nxg3 {[%emt 0:00:04]} 10. fxg3 {[%emt 0:00:02]} Qd6 {[%emt 0:00:37]} 11. O-O-O {[%emt 0:01:51]} Bxc3 {[%emt 0:00:30]} 12. Qxc3 {[%emt 0:00:02]} Qxg3 {[%emt 0:01:03]} 13. cxd5 {[%emt 0:00:05]} exd5 {[%emt 0:00:10]} 14. Qe3+ {[%emt 0:00:01]} Be6 {[%emt 0:00:14]} 15. Qxg5 {[%emt 0:00:02]} Rg8 {[%emt 0:00:20]} 16. Qxg3 {[%emt 0:00:49]} Rxg3 {[%emt 0:00:01]} 17. e3 {[%emt 0:00:03]} Nd7 {[%emt 0:00:27]} 18. Rd2 {[%emt 0:00:54]} Ke7 {[%emt 0:00:26]} 19. Bd3 {[%emt 0:01:23]} Rag8 {[%emt 0:00:02]} 20. Rh2 {[%emt 0:00:01]} Nf6 {[%emt 0:00:31]} 21. Rc2 {[%emt 0:00:20]} c6 {[%emt 0:00:12]} 22. Kd2 {[%emt 0:00:11]} Rxg2+ {[%emt 0:00:07]} 23. Ke1 {[%emt 0:00:03]} Rxh2 {[%emt 0:00:28]} 24. Rxh2 {[%emt 0:00:03]} Rg3 {[%emt 0:00:01]} 25. Kf2 {[%emt 0:00:05]} Rxh3 {[%emt 0:00:04]} 26. Rxh3 {[%emt 0:00:05]} Bxh3 {[%emt 0:00:01]} 27. Kg3 {[%emt 0:00:03]} Bg4 {[%emt 0:00:24]} 28. Ne5 {[%emt 0:00:11]} Be6 {[%emt 0:00:06]} 29. Kh4 {[%emt 0:00:02]} Ng4 {[%emt 0:00:03]} 30. Kxh5 {[%emt 0:00:18]} Nxe3 {[%emt 0:00:03]} 31. Kh4 {[%emt 0:00:19]} Bf5 {[%emt 0:00:08]} 32. Kg5 {[%emt 0:01:06]} f6+ {[%emt 0:00:05]} 33. Kf4 {[%emt 0:00:03]} fxe5+ {[%emt 0:00:02]} 34. Kxe3 {[%emt 0:00:03]} Bxd3 {[%emt 0:00:02]} 35. Kxd3 {[%emt 0:00:01]} exd4 {[%emt 0:00:04]} 0-1

[Event "Skalica Rapid 2020"]
[Site "Skalica"]
[Date "2020.08.29"]
[Round "4.7"]
[White "Meszaros, Casey Ryan"]
[Black "Stos, Radek"]
[Result "1-0"]
[ECO "B22"]
[WhiteElo "1478"]
[BlackElo "1790"]
[Annotator "NA"]
[PlyCount "107"]
[EventDate "2020.08.29"]
[EventType "swiss"]
[EventCountry "SVK"]
[SourceTitle "playchess.com"]
[Source "ChessBase"]
[SourceQuality "1"]
[TimeControl "600+5"]

1. e4 {[%emt 0:00:00]} c5 {[%emt 0:00:00]} 2. c3 {[%emt 0:00:00]} Nc6 {[%emt 0:00:00]} 3. d4 {[%emt 0:00:00]} cxd4 {[%emt 0:00:00]} 4. cxd4 {[%emt 0:00:00]} d6 {[%emt 0:00:00]} 5. Nf3 {[%emt 0:00:01]} Nf6 {[%emt 0:00:02]} 6. Nc3 {[%emt 0:00:03]} g6 {[%emt 0:00:01]} 7. Bd3 {[%emt 0:00:04]} Bg7 {[%emt 0:00:02]} 8. O-O {[%emt 0:00:03]} O-O {[%emt 0:00:03]} 9. Bc2 {[%emt 0:00:03]} Bg4 {[%emt 0:00:14]} 10. Be3 {[%emt 0:00:09]} Rc8 {[%emt 0:00:24]} 11. h3 {[%emt 0:00:09]} Bd7 {[%emt 0:00:03]} 12. a3 {[%emt 0:00:08]} b6 {[%emt 0:00:02]} 13. d5 {[%emt 0:00:04]} Na5 {[%emt 0:00:03]} 14. Bd3 {[%emt 0:00:22]} Nh5 {[%emt 0:00:19]} 15. Bd4 {[%emt 0:00:34]} Nf4 {[%emt 0:00:28]} 16. Bxg7 {[%emt 0:00:16]} Kxg7 {[%emt 0:00:02]} 17. b4 {[%emt 0:00:15]} Nc4 {[%emt 0:00:02]} 18. Bxc4 {[%emt 0:00:08]} Rxc4 {[%emt 0:00:04]} 19. Qd2 {[%emt 0:00:14]} Rxc3 {[%emt 0:00:06]} 20. Qxf4 {[%emt 0:00:02]} e5 {[%emt 0:00:11]} 21. dxe6 {[%emt 0:00:38]} Bxe6 {[%emt 0:00:03]} 22. Rfd1 {[%emt 0:00:15]} Rc4 {[%emt 0:00:42]} 23. Rxd6 {[%emt 0:00:21]} Qc7 {[%emt 0:00:02]} 24. Qe5+ {[%emt 0:00:02]} Kg8 {[%emt 0:00:07]} 25. Nd4 {[%emt 0:02:02]} Rc1+ {[%emt 0:01:08]} 26. Rxc1 {[%emt 0:00:02]} Qxc1+ {[%emt 0:00:02]} 27. Kh2 {[%emt 0:00:01]} Ba2 {[%emt 0:00:15]} 28. Nc6 {[%emt 0:01:41]} f6 {[%emt 0:00:25]} 29. Ne7+ {[%emt 0:00:33]} Kg7 {[%emt 0:00:05]} 30. Qg3 {[%emt 0:00:19]} Qg5 {[%emt 0:00:36]} 31. Qxg5 {[%emt 0:00:13]} fxg5 {[%emt 0:00:01]} 32. f3 {[%emt 0:00:19]} Rf6 {[%emt 0:00:02]} 33. Rd7 {[%emt 0:00:22]} Kf8 {[%emt 0:00:14]} 34. Rxa7 h5 {[%emt 0:00:12]} 35. Nd5 {[%emt 0:01:31]} Rd6 {[%emt 0:00:06]} 36. Nc3 {[%emt 0:00:31]} Bc4 {[%emt 0:00:07]} 37. Rc7 {[%emt 0:00:15]} Bb3 {[%emt 0:00:24]} 38. Nb5 {[%emt 0:00:18]} Re6 {[%emt 0:00:02]} 39. Nd4 {[%emt 0:00:02]} Rf6 {[%emt 0:00:13]} 40. Nxb3 {[%emt 0:00:02]} g4 {[%emt 0:00:01]} 41. hxg4 {[%emt 0:00:02]} hxg4 {[%emt 0:00:02]} 42. Kg3 {[%emt 0:00:01]} gxf3 43. gxf3 g5 {[%emt 0:00:05]} 44. Nd4 {[%emt 0:00:08]} b5 {[%emt 0:00:02]} 45. Nxb5 {[%emt 0:00:02]} Rb6 {[%emt 0:00:04]} 46. Nd4 {[%emt 0:00:10]} Rd6 {[%emt 0:00:01]} 47. Nf5 {[%emt 0:00:01]} Rf6 {[%emt 0:00:03]} 48. Kg4 {[%emt 0:00:03]} Kg8 {[%emt 0:00:03]} 49. Kxg5 {[%emt 0:00:02]} Rf8 {[%emt 0:00:06]} 50. Kg6 {[%emt 0:00:09]} Kh8 {[%emt 0:00:09]} 51. a4 {[%emt 0:00:09]} Rg8+ {[%emt 0:00:05]} 52. Kh6 {[%emt 0:00:14]} Rf8 {[%emt 0:00:12]} 53. Rh7+ {[%emt 0:00:04]} Kg8 {[%emt 0:00:02]} 54. Ne7# 1-0

[Event "Skalica Rapid 2020"]
[Site "Skalica"]
[Date "2020.08.29"]
[Round "4.8"]
[White "Danada, Tomas"]
[Black "Beres, Tomas"]
[Result "0-1"]
[ECO "A03"]
[WhiteElo "2122"]
[BlackElo "1956"]
[Annotator "ChessBase"]
[PlyCount "54"]
[EventDate "2020.08.29"]
[EventType "swiss"]
[EventCountry "SVK"]
[SourceTitle "playchess.com"]
[Source "ChessBase"]
[SourceQuality "1"]
[TimeControl "600+5"]

1. f4 {[%emt 0:00:02]} d5 {[%emt 0:00:00]} 2. Nf3 {[%emt 0:00:02]} c5 {[%emt 0:00:00]} 3. g3 {[%emt 0:00:01]} Nc6 {[%emt 0:00:00]} 4. Bg2 {[%emt 0:00:01]} Nf6 {[%emt 0:00:04]} 5. O-O {[%emt 0:00:02]} g6 {[%emt 0:00:13]} 6. d3 {[%emt 0:00:02]} Bg7 {[%emt 0:00:03]} 7. c3 {[%emt 0:00:02]} O-O {[%emt 0:00:10]} 8. Na3 {[%emt 0:00:01]} a6 {[%emt 0:00:44]} 9. Rb1 {[%emt 0:00:10]} Qc7 {[%emt 0:00:46]} 10. Qe1 {[%emt 0:00:18]} e5 {[%emt 0:00:24]} 11. e4 {[%emt 0:00:04]} dxe4 {[%emt 0:00:24]} 12. dxe4 {[%emt 0:00:02]} Be6 {[%emt 0:00:10]} 13. b3 {[%emt 0:00:49]} b5 {[%emt 0:02:24]} 14. h3 {[%emt 0:00:18]} exf4 {[%emt 0:00:37]} 15. gxf4 {[%emt 0:00:20]} Nh5 {[%emt 0:00:48]} 16. Ng5 {[%emt 0:00:28]} Bd7 {[%emt 0:00:09]} 17. e5 {[%emt 0:01:16]} Bf5 {[%emt 0:00:58]} 18. Rb2 {[%emt 0:00:19]} Rae8 {[%emt 0:00:59]} 19. Nc2 {[%emt 0:00:13]} f6 {[%emt 0:00:15]} 20. Bd5+ {[%emt 0:00:12]} Kh8 {[%emt 0:00:03]} 21. Nf3 {[%emt 0:03:56]} fxe5 {[%emt 0:01:04]} 22. Qh4 {[%emt 0:00:30]} e4 {[%emt 0:00:34]} 23. Bxc6 {[%emt 0:00:31]} Qxc6 {[%emt 0:00:01]} 24. Ne5 {[%emt 0:00:02]} Qe6 {[%emt 0:00:22]} 25. Be3 {[%emt 0:00:24]} Bxh3 {[%emt 0:00:02]} 26. Rd1 {[%emt 0:00:01]} Bf6 {[%emt 0:00:12]} 27. Qe1 {[%emt 0:00:15]} Bxe5 {[%emt 0:00:02]} 0-1